Cogmind - Beta 12 @@@ ROGUE MODE // 2023.09.08 @ 12:26:19 Player: monistgf Result: Destroyed by D-53 Grenadier with Mini Grenade Launcher Performance ------------- Evolutions (4) 2000 Regions Visited (11) 2200 Robots Destroyed (95) 475 Value Destroyed (3154) 3154 Prototype IDs (5) 100 Alien Tech Used (0) 0 Bonus (854) 854 TOTAL SCORE: 8783 Bonus ------- High Alert Combat Kills 54 Entered DSFs 500 Aligned with FarCom 300 Cogmind --------- Core Integrity 0/850 Matter 139/300 Energy 99/100 System Corruption 11% Temperature Cool (0) Movement Core (350) Ox6 Location -6/DSF Parts ------- > --- POWER (1) -------- (None) > --- PROPULSION (5) --- (None) > --- UTILITY (5) ------ Large Storage Unit > --- WEAPON (4) ------- (None) > --- INVENTORY (15) --- High-capacity Matter Pod (200) Improved Field Recycling Unit (200) Rocket Launcher Shock Trap Shock Trap Peak State ------------ > --- POWER ------------ Improved Deuterium Engine > --- PROPULSION ------- Improved Carbon-fiber Leg Improved Carbon-fiber Leg Improved Carbon-fiber Leg Improved Carbon-fiber Leg Improved Carbon-fiber Leg > --- UTILITY ---------- Cooling System Large Storage Unit Improved Medium Armor Plating > --- WEAPON ----------- Heavy Assault Rifle Heavy Assault Rifle Gauss Rifle Gauss Rifle > --- INVENTORY -------- Nuclear Core Improved Carbon-fiber Leg Improved Carbon-fiber Leg Improved Carbon-fiber Leg High-capacity Matter Pod Improved Medium Armor Plating Improved Medium Armor Plating Reflective Plating Improved Field Recycling Unit Light Assault Rifle Heavy Assault Rifle Improved Light Cannon Rocket Launcher Rocket Launcher Great Maul [Rating: 47] Favorites ----------- Power Ion Engine Engine Ion Engine Power Core Nuclear Core Propulsion Improved Carbon-fiber Leg Leg Improved Carbon-fiber Leg Utility Medium Storage Unit Device Cooling System Storage Medium Storage Unit Protection Hardened Light Armor Plating Weapon Light Assault Rifle Energy Gun Small Laser Ballistic Gun Light Assault Rifle Ballistic Cannon Assault Cannon Launcher Rocket Launcher Impact Weapon Hammer Build | -11 -10 -9 -9 -9 -8 -8 -7 -7 -7 -6 -6 ------- Run | Jun Mat Mat Min Exi Min Mat Fac Low Low Fac DSF Slots Evolved 8 | . . 2 . . . 2 2 . . 2 . Power . | . . . . . . . . . . . . Propulsion 3 | . . . . . . 2 1 . . . . Utility 3 | . . . . . . . 1 . . 2 . Weapon 2 | . . 2 . . . . . . . . . Parts Attached 142 | 6 26 32 7 . 3 22 27 7 4 1 7 Power 16 | 1 6 4 . . 1 2 1 . 1 . . Engine 14 | 1 6 4 . . 1 1 1 . . . . Core 2 | . . . . . . 1 . . 1 . . Reactor . | . . . . . . . . . . . . Propulsion 47 | 2 9 16 . . 2 7 7 2 2 . . Treads . | . . . . . . . . . . . . Leg 47 | 2 9 16 . . 2 7 7 2 2 . . Wheel . | . . . . . . . . . . . . Hover . | . . . . . . . . . . . . Flight . | . . . . . . . . . . . . Utility 35 | 1 4 5 1 . . 7 14 1 . 1 1 Device 13 | . 2 . . . . 4 7 . . . . Storage 3 | 1 1 . . . . 1 . . . . . Processor . | . . . . . . . . . . . . Hackware . | . . . . . . . . . . . . Protection 19 | . 1 5 1 . . 2 7 1 . 1 1 Artifact . | . . . . . . . . . . . . Weapon 44 | 2 7 7 6 . . 6 5 4 1 . 6 Energy Gun 7 | 2 2 2 1 . . . . . . . . Energy Cannon . | . . . . . . . . . . . . Ballistic Gun 20 | . 3 3 4 . . 4 4 2 . . . Ballistic Cannon 9 | . 2 . . . . 1 1 1 . . 4 Launcher 4 | . . . 1 . . 1 . . 1 . 1 Special Weapon . | . . . . . . . . . . . . Impact Weapon 4 | . . 2 . . . . . 1 . . 1 Slashing Weapon . | . . . . . . . . . . . . Piercing Weapon . | . . . . . . . . . . . . Special Melee Weapon . | . . . . . . . . . . . . Unidentified Prototypes 1 | . . . . . . . . . . . 1 Parts Lost 37 | . 3 4 1 . . . 1 9 4 . 15 Power 3 | . . 1 . . . . . . 1 . 1 Propulsion 11 | . . 2 . . . . . 2 3 . 4 Utility 7 | . 1 . . . . . 1 1 . . 4 Weapon 16 | . 2 1 1 . . . . 6 . . 6 Highest Loss Streak 13 | . 1 4 1 . . . 1 7 2 . 13 To Critical Strikes . | . . . . . . . . . . . . Average Slot Usage (%) 97 | . 97 99 99 100 100 100 99 97 83 73 43 Engine 8 | . 14 10 11 11 11 5 7 7 . . . Leg 28 | . 27 22 22 22 22 36 37 37 33 26 13 Device 3 | . 5 4 . . . 2 9 7 7 6 3 Storage 9 | . 14 11 11 11 11 9 7 7 7 6 6 Protection 7 | . 7 6 11 11 11 6 4 7 7 13 5 Energy Gun 1 | . 17 . . . . . . . . . . Ballistic Gun 25 | . 8 29 32 33 33 25 23 26 7 6 2 Ballistic Cannon 2 | . 1 2 . . . 6 6 . . . 4 Impact Weapon 6 | . . 10 11 11 11 3 . . 7 6 3 Naked Turns . | . . . . . . . . . . . . Heaviest Build 55 | 11 22 27 31 27 31 53 55 54 48 48 55 Greatest Support 90 | 20 20 26 26 26 26 60 90 90 90 69 69 Greatest Overweight (x) 11 | 1 6 1 1 1 1 . . . . . 11 Average Overweight (x) . | . . . . 1 1 . . . . . . Largest Inventory Capacity 15 | 8 10 10 10 10 10 15 15 15 15 15 15 Average Capacity 11 | 6 9 10 10 10 10 13 15 15 15 15 15 Most Carried 15 | 2 10 10 10 9 10 15 15 15 8 5 9 Average Carried 10 | 1 7 9 9 9 9 12 14 13 6 5 6 Final Capacity 15 | 8 10 10 10 10 10 15 15 15 15 15 15 Final Carried 15 | 2 9 10 9 9 10 15 15 9 6 5 5 Class Distribution -------------------- 30% | Skirmisher 26% | Tank 12% | Mutant 12% | Scavenger-Skirmisher 7% | Scavenger-Tank 6% | Scavenger-Gunner 3% | Scavenger-Mutant Dominant Class ---------------- Mutant | -10/Materials Scavenger-Tank | -9/Materials Tank | -9/Mines Tank | -9/Exiles Skirmisher | -8/Mines Scavenger-Skirmisher | -8/Materials Skirmisher | -7/Factory Tank | -7/Lower Caves Mutant | -7/Lower Caves Mutant | -6/Factory Mutant | -6/DSF Resources | -11 -10 -9 -9 -9 -8 -8 -7 -7 -7 -6 -6 ----------- Run | Jun Mat Mat Min Exi Min Mat Fac Low Low Fac DSF Matter Collected 3231 | 217 358 896 202 . 95 524 339 244 74 . 282 Remotely . | . . . . . . . . . . . . Salvage Created 3916 | . 503 1206 115 . 105 574 753 223 107 . 330 Parts 219 | . 26 74 5 . 4 47 44 14 2 . 3 Haulers Intercepted 7 | . 2 2 . . . 2 1 . . . . Recyclers Shooed 5 | . 1 . . . 1 2 1 . . . . Parts Field Recycled 40 | . . . . . . 2 38 . . . . Retrieved Matter 450 | . . . . . . 55 395 . . . . Parts Self-Destructed 18 | . . . . . . . . 14 4 . . Prevented . | . . . . . . . . . . . . Kills | -11 -10 -9 -9 -9 -8 -8 -7 -7 -7 -6 -6 ------- Run | Jun Mat Mat Min Exi Min Mat Fac Low Low Fac DSF Combat Hostiles Destroyed 118 | . 11 27 11 . 2 15 12 4 3 . 33 Melee 3 | . . . . . . . . . . . 3 Guns 62 | . 11 24 8 . 2 5 8 4 . . . Cannons 41 | . . 2 . . . 6 4 . . . 29 AOE 8 | . . . 3 . . 4 . . 1 . . Classes Destroyed 15 | . 3 4 2 . . 2 2 . 1 . 1 Worker 3 | . . . . . . 1 2 . . . . Builder 2 | . . 1 . . . 1 . . . . . Hauler 7 | . 2 2 . . . 2 1 . . . . Recycler 1 | . . . . . . . 1 . . . . Watcher 2 | . . 2 . . . . . . . . . Swarmer 15 | . 3 3 3 . . 6 . . . . . Grunt 37 | . 8 18 . . 1 2 4 2 2 . . Brawler 1 | . . . . . . . . . 1 . . Duelist 2 | . . 1 . . 1 . . . . . . Sentry 15 | . . 5 . . . 5 4 1 . . . Demolisher 2 | . . . 2 . . . . . . . . Specialist 1 | . . . . . . . . . . . 1 Hunter 3 | . . . . . . 2 1 . . . . Programmer 4 | . . . . . . . 3 1 . . . Assembled 38 | . . . 6 . . . . . . . 32 Best Kill Streak 31 | . 4 6 3 . 1 5 4 2 2 . 31 Combat Bots Only 31 | . 4 4 3 . 1 4 4 2 2 . 31 Max Kills in Single Turn 3 | . 1 2 3 . 1 3 2 1 1 . 2 Gunslinging 1 | . . 1 . . . . . . . . . Exploded 3 | . . . 3 . . 2 . . 1 . . Melee 1 | . . . . . . . . . . . 1 Uniques/NPCs Destroyed . | . . . . . . . . . . . . Combat | -11 -10 -9 -9 -9 -8 -8 -7 -7 -7 -6 -6 -------- Run | Jun Mat Mat Min Exi Min Mat Fac Low Low Fac DSF Damage Taken 8602 | . 669 1048 263 . 266 460 681 1521 379 . 3315 Core 1702 | . 171 167 12 . 30 105 30 325 . . 862 Absorbed by Shields . | . . . . . . . . . . . . Redirected to Shielding 51 | . 51 . . . . . . . . . . Core Remaining (%) 61 | 100 31 . . . 47 80 . . 49 . . Volleys Fired 258 | . 54 61 17 . 14 28 33 22 2 . 27 Largest 4 | . 2 3 3 . 3 4 4 4 1 . 2 Hottest 120 | . 90 78 76 . 63 110 110 118 33 . 120 Shots Fired 723 | . 108 183 48 . 42 95 133 70 2 . 42 Gun 602 | . 108 172 47 . 42 68 99 66 . . . Cannon 117 | . . 11 . . . 26 34 4 . . 42 Launcher 4 | . . . 1 . . 1 . . 2 . . Special . | . . . . . . . . . . . . Kinetic 645 | . 34 183 47 . 42 94 133 70 . . 42 Thermal 74 | . 74 . . . . . . . . . . Explosive 4 | . . . 1 . . 1 . . 2 . . Electromagnetic . | . . . . . . . . . . . . Robot Hit Streak 16 | . 10 16 4 . 11 13 13 8 . . 7 Robot Miss Streak 6 | . 4 6 5 . 2 4 2 4 2 . 4 Penetration Max . | . . . . . . . . . . . . Secondary Targets 6 | . 3 2 . . . . . 1 . . . Max Gunslinging Chain 1 | . 1 1 . . . . . 1 . . . Shots Hit Robots 499 | . 78 138 24 . 32 56 87 42 6 . 36 Core Hits 219 | . 25 63 19 . 7 25 41 12 1 . 26 Critical Kills 2 | . . 1 . . . . 1 . . . . Critical Parts Destroyed 6 | . . 3 . . 1 . . . 1 . 1 Critical Strikes 19 | . 4 4 1 . 1 3 1 . 1 . 4 Burn 4 | . 4 . . . . . . . . . . Destroy 4 | . . 2 1 . . . 1 . . . . Blast 6 | . . . . . . 3 . . . . 3 Smash 5 | . . 2 . . 1 . . . 1 . 1 Melee Attacks 27 | . . 9 . . 2 1 . 1 6 . 8 Impact 27 | . . 9 . . 2 1 . 1 6 . 8 Slashing . | . . . . . . . . . . . . Piercing . | . . . . . . . . . . . . Sneak Attacks 5 | . . 3 . . 1 1 . . . . . Combat Hostiles . | . . . . . . . . . . . . Follow-up Attacks . | . . . . . . . . . . . . Damage Inflicted 9271 | . 910 1960 410 . 378 1369 1309 751 435 . 1749 Guns 5208 | . 890 1702 294 . 315 463 837 707 . . . Cannons 2284 | . . 50 . . . 345 390 44 . . 1455 Explosions 784 | . . . 116 . . 475 . . 193 . . Melee 881 | . . 208 . . 63 74 . . 242 . 294 Ramming 114 | . 20 . . . . 12 82 . . . . Kinetic 6839 | . 237 1752 294 . 315 808 1227 751 . . 1455 Thermal 653 | . 653 . . . . . . . . . . Explosive 784 | . . . 116 . . 475 . . 193 . . Electromagnetic . | . . . . . . . . . . . . Impact 881 | . . 208 . . 63 74 . . 242 . 294 Slashing . | . . . . . . . . . . . . Piercing . | . . . . . . . . . . . . Highest Corruption 15 | . . . . . . 2 3 10 15 . 11 Average Corruption 3 | . . . . . . 1 2 4 14 . 7 Corruption Purged . | . . . . . . . . . . . . Corruption Blocked . | . . . . . . . . . . . . Effects 38 | . . . . . . 8 5 16 4 . 5 Message Errors 12 | . . . . . . 4 1 2 3 . 2 Matter Fused 8 | . . . . . . 1 1 4 1 . 1 Heat Flow Errors 4 | . . . . . . . 1 3 . . . Energy Discharges 2 | . . . . . . . 1 1 . . . Parts Rejected 2 | . . . . . . 1 . . . . 1 Data Loss (minor) 6 | . . . . . . 1 . 4 . . 1 Data Loss (major) 1 | . . . . . . 1 . . . . . Misfires 2 | . . . . . . . 1 1 . . . Weapon Failures 1 | . . . . . . . . 1 . . . Overload Shots . | . . . . . . . . . . . . Overflow Damage 432 | . . 64 23 . 34 57 . . 66 . 188 Projectiles 88 | . . . . . . . . . . . 88 Explosions 66 | . . . 23 . . 43 . . . . . Melee 278 | . . 64 . . 34 14 . . 66 . 100 Knockbacks 14 | . . 2 . . . . 5 1 . . 6 Impact 1 | . . 1 . . . . . . . . . Kinetic 13 | . . 1 . . . . 5 1 . . 6 Secondary . | . . . . . . . . . . . . Self-Inflicted Damage 218 | . . . 29 . . 91 . . 98 . . Shots 4 | . . . 1 . . 1 . . 2 . . Rammed . | . . . . . . . . . . . . Targets Rammed 13 | . 4 . . . . 3 6 . . . . Kicked 13 | . 4 . . . . 3 6 . . . . Crushed . | . . . . . . . . . . . . Highest Temperature 313 | . 220 94 60 . 124 120 313 178 . . 12 Average Temperature 62 | . 89 31 21 . 57 44 102 65 . . 5 Received Heat Transfer 1743 | . 327 333 . . 18 72 144 519 90 . 240 Siege Activations . | . . . . . . . . . . . . Robots Corrupted . | . . . . . . . . . . . . Combat Hostiles . | . . . . . . . . . . . . Parts Fried 6 | . . 2 . . . 2 . . . . 2 Impact Corruptions 11 | . . 2 . . 1 1 . . 2 . 5 Robots Melted . | . . . . . . . . . . . . Combat Hostiles . | . . . . . . . . . . . . Parts Melted 6 | . 6 . . . . . . . . . . Heat Transferred 1984 | . 1984 . . . . . . . . . . Parts Sabotaged . | . . . . . . . . . . . . Parts Stolen . | . . . . . . . . . . . . Parts Stripped . | . . . . . . . . . . . . Power Chain Reactions . | . . . . . . . . . . . . Missiles Intercepted . | . . . . . . . . . . . . Alert | -11 -10 -9 -9 -9 -8 -8 -7 -7 -7 -6 -6 ------- Run | Jun Mat Mat Min Exi Min Mat Fac Low Low Fac DSF Peak Influence 503 | . 196 503 259 . 80 254 322 . . 46 52 Initial 169 | . . . 169 . . 5 115 . . 46 32 Average 127 | . 94 278 138 . 4 80 180 . . 46 21 Maximum Alert Level 2 | . . 2 1 . . 1 1 . . . . Low Security (%) 74 | 100 100 29 58 . 100 94 66 . . 100 100 Level 1 19 | . . 37 41 . . 5 33 . . . . Level 2 5 | . . 33 . . . . . . . . . Level 3 . | . . . . . . . . . . . . Level 4 . | . . . . . . . . . . . . Level 5 . | . . . . . . . . . . . . High Security . | . . . . . . . . . . . . Max Security . | . . . . . . . . . . . . Squads Dispatched 16 | . . 5 . . . 3 6 . . 1 1 Investigation 7 | . . 3 . . . 2 1 . . 1 . Extermination 3 | . . . . . . . 3 . . . . Reinforcement 6 | . . 2 . . . 1 2 . . . 1 Assault . | . . . . . . . . . . . . Garrison . | . . . . . . . . . . . . Intercept . | . . . . . . . . . . . . Searches Triggered . | . . . . . . . . . . . . Construction Impeded 1 | . . . . . . . 1 . . . . Haulers Reinforced . | . . . . . . . . . . . . Active Scanning Responses . | . . . . . . . . . . . . Cargo Convoy Interrupts . | . . . . . . . . . . . . Stealth | -11 -10 -9 -9 -9 -8 -8 -7 -7 -7 -6 -6 --------- Run | Jun Mat Mat Min Exi Min Mat Fac Low Low Fac DSF Distress Signals 12 | . 2 4 . . . 4 2 . . . . Communications Jammed . | . . . . . . . . . . . . Distress Signals . | . . . . . . . . . . . . Times Spotted 186 | . 17 33 18 . 5 26 18 10 3 . 56 Peak Tracking Total 17 | . 4 4 3 . 3 3 4 5 3 . 17 Tactical Retreats 15 | . . 1 3 . 3 1 . 2 . . 5 Traps | -11 -10 -9 -9 -9 -8 -8 -7 -7 -7 -6 -6 ------- Run | Jun Mat Mat Min Exi Min Mat Fac Low Low Fac DSF Traps Triggered 12 | . 4 2 . . . 4 1 . . . 1 Indirectly . | . . . . . . . . . . . . Trap Hack Attempts . | . . . . . . . . . . . . Triggered . | . . . . . . . . . . . . Disarmed . | . . . . . . . . . . . . Reprogrammed . | . . . . . . . . . . . . Reused 4 | . . . . . . . . . . . 4 Traps Extracted . | . . . . . . . . . . . . Installed 4 | . . . . . . . . . . . 4 Triggered 1 | . . . . . . . . . 1 . . Most Traps Carried 3 | . . . . . . . . . . . 3 Machines | -11 -10 -9 -9 -9 -8 -8 -7 -7 -7 -6 -6 ---------- Run | Jun Mat Mat Min Exi Min Mat Fac Low Low Fac DSF Machines Disabled 3 | . . . . . . 3 . . . . . Max in Single Turn 2 | . . . . . . 2 . . . . . Machines Repaired . | . . . . . . . . . . . . Machines Sabotaged . | . . . . . . . . . . . . Overloaded Fab Kills . | . . . . . . . . . . . . Hacking | -11 -10 -9 -9 -9 -8 -8 -7 -7 -7 -6 -6 --------- Run | Jun Mat Mat Min Exi Min Mat Fac Low Low Fac DSF Machines Accessed 21 | . 4 4 . . . 7 4 . . 2 . Terminals 18 | . 4 4 . . . 7 1 . . 2 . Fabricators 2 | . . . . . . . 2 . . . . Repair Stations . | . . . . . . . . . . . . Recycling Units 1 | . . . . . . . 1 . . . . Scanalyzers . | . . . . . . . . . . . . Garrison Access . | . . . . . . . . . . . . Total Hacks 52 | . 9 11 . . . 21 7 . . 4 . Successful 20 | . 3 3 . . . 10 3 . . 1 . Failed 32 | . 6 8 . . . 11 4 . . 3 . Catastrophic 9 | . 1 2 . . . 3 3 . . . . Database Lockouts . | . . . . . . . . . . . . Manual 33 | . 5 7 . 1 . 14 4 . . 2 . Terminals 49 | . 9 11 . . . 21 4 . . 4 . Fabricators 2 | . . . . . . . 2 . . . . Repair Stations . | . . . . . . . . . . . . Recycling Units 1 | . . . . . . . 1 . . . . Scanalyzers . | . . . . . . . . . . . . Garrison Access . | . . . . . . . . . . . . Terminal Hacks 14 | . 2 2 . . . 7 2 . . 1 . Robot Analysis 1 | . 1 . . . . . . . . . . Prototype ID Bank 2 | . . . . . . 2 . . . . . Open DSF 1 | . . . . . . . . . . 1 . Branch Access Points 3 | . . 1 . . . 1 1 . . . . Alert Level 2 | . . . . . . 1 1 . . . . Unreport Threat 1 | . 1 . . . . . . . . . . Locate Traps 2 | . . 1 . . . 1 . . . . . Recall Reinforcements 1 | . . . . . . 1 . . . . . Hauler Manifests 1 | . . . . . . 1 . . . . . Fabricator Hacks 1 | . . . . . . . 1 . . . . Network Status 1 | . . . . . . . 1 . . . . Repair Station Hacks . | . . . . . . . . . . . . Recycling Unit Hacks . | . . . . . . . . . . . . Scanalyzer . | . . . . . . . . . . . . Garrison Access Hacks . | . . . . . . . . . . . . Unauthorized Hacks 5 | . 1 1 . . . 3 . . . . . Terminals 5 | . 1 1 . . . 3 . . . . . Assimilate 1 | . . . . . . 1 . . . . . Botnet 3 | . 1 . . . . 2 . . . . . Disrupt 1 | . . 1 . . . . . . . . . Fabricators . | . . . . . . . . . . . . Repair Stations . | . . . . . . . . . . . . Recycling Units . | . . . . . . . . . . . . Scanalyzers . | . . . . . . . . . . . . Garrison Access . | . . . . . . . . . . . . Data Cores Recovered . | . . . . . . . . . . . . Used . | . . . . . . . . . . . . Hacking Detections 20 | . 4 3 . . . 7 4 . . 2 . Full Trace Events 5 | . . 2 . . . 1 1 . . 1 . Feedback Events . | . . . . . . . . . . . . Feedback Blocked . | . . . . . . . . . . . . Robot Schematics Acquired . | . . . . . . . . . . . . Robots Built . | . . . . . . . . . . . . Authchips . | . . . . . . . . . . . . Time . | . . . . . . . . . . . . Total Robot Build Rating . | . . . . . . . . . . . . Part Schematics Acquired . | . . . . . . . . . . . . Parts Built . | . . . . . . . . . . . . Authchips . | . . . . . . . . . . . . Time . | . . . . . . . . . . . . Total Part Build Rating . | . . . . . . . . . . . . Parts Repaired . | . . . . . . . . . . . . Time . | . . . . . . . . . . . . Parts Recycled . | . . . . . . . . . . . . Recycled Matter . | . . . . . . . . . . . . Retrieved Matter . | . . . . . . . . . . . . Retrieved Components . | . . . . . . . . . . . . Parts Scanalyzed . | . . . . . . . . . . . . Part Schematics Acquired . | . . . . . . . . . . . . Parts Damaged . | . . . . . . . . . . . . Bothacking | -11 -10 -9 -9 -9 -8 -8 -7 -7 -7 -6 -6 ------------ Run | Jun Mat Mat Min Exi Min Mat Fac Low Low Fac DSF Used RIF Installer . | . . . . . . . . . . . . Robots Hacked . | . . . . . . . . . . . . Non-combat . | . . . . . . . . . . . . Combat . | . . . . . . . . . . . . Robot Hacks Applied . | . . . . . . . . . . . . Relay Couplers Released . | . . . . . . . . . . . . Fabnet Peak Effective % . | . . . . . . . . . . . . Robots Rewired . | . . . . . . . . . . . . Allies Hacked . | . . . . . . . . . . . . Hacks Repelled . | . . . . . . . . . . . . Allies | -11 -10 -9 -9 -9 -8 -8 -7 -7 -7 -6 -6 -------- Run | Jun Mat Mat Min Exi Min Mat Fac Low Low Fac DSF Total Allies 1 | . . . . . . 1 . . . . . Largest Group 1 | . . . . . . 1 . . . . . Highest-Rated Group 10 | . . . . . . 10 . . . . . Highest-Rated Ally 10 | . . . . . . 10 . . . . . Total Orders 1 | . . . . . . 1 . . . . . STAY 1 | . . . . . . 1 . . . . . Ally Attacks . | . . . . . . . . . . . . Total Damage . | . . . . . . . . . . . . Kills . | . . . . . . . . . . . . Allies Corrupted . | . . . . . . . . . . . . Allies Melted . | . . . . . . . . . . . . Intel | -11 -10 -9 -9 -9 -8 -8 -7 -7 -7 -6 -6 ------- Run | Jun Mat Mat Min Exi Min Mat Fac Low Low Fac DSF Robot Analysis Total 1 | . 1 . . . . . . . . . . Derelict Logs Recovered 2 | . . . 2 . . . . . . . . Drone Launches . | . . . . . . . . . . . . Drone Recoveries . | . . . . . . . . . . . . Exploration | -11 -10 -9 -9 -9 -8 -8 -7 -7 -7 -6 -6 ------------- Run | Jun Mat Mat Min Exi Min Mat Fac Low Low Fac DSF Turns Passed 7513 | 52 721 1135 958 413 848 1361 950 634 80 165 196 Spaces Moved 3903 | 38 372 387 455 218 402 757 598 455 41 130 50 Core 14 | 8 1 . . . . . . . . . 5 Treads . | . . . . . . . . . . . . Legs 3889 | 30 371 387 455 218 402 757 598 455 41 130 45 Wheels . | . . . . . . . . . . . . Hover . | . . . . . . . . . . . . Flight . | . . . . . . . . . . . . Fastest Speed 50 | 50 120 120 120 190 190 120 120 120 120 120 120 Average Speed 146 | 110 122 189 189 190 190 120 120 120 120 120 157 Slowest Speed 600 | 120 350 190 190 190 190 120 120 120 120 120 600 Overloaded Moves . | . . . . . . . . . . . . Propulsion Burnouts . | . . . . . . . . . . . . Robots Hopped . | . . . . . . . . . . . . Cave-ins Triggered . | . . . . . . . . . . . . Exploration Rate (%) 45 | 3 77 39 98 43 89 70 14 59 6 2 50 Regions Visited 11 Branch Regions 5 Pre-discovered Areas 1 | . . . 1 . . . . . . . . Known Exits Taken 3 | . . 1 . . . . 1 . . 1 . Unknown Exits Taken 8 | 1 1 . 1 1 1 1 . 1 1 . . Scrap Searched 6 | . . . 2 . 1 . . 3 . . . Spaces Dug . | . . . . . . . . . . . . Terrain Destroyed 92 | . . . 5 . . 61 . 1 19 . 6 Melee . | . . . . . . . . . . . . Projectile 10 | . . . . . . 3 . 1 . . 6 AOE 82 | . . . 5 . . 58 . . 19 . . Terrain Rammed . | . . . . . . . . . . . . Walls Destroyed . | . . . . . . . . . . . . Machines Disabled . | . . . . . . . . . . . . Actions | -11 -10 -9 -9 -9 -8 -8 -7 -7 -7 -6 -6 --------- Run | Jun Mat Mat Min Exi Min Mat Fac Low Low Fac DSF Total 5159 | 45 525 674 525 217 461 1160 751 494 58 139 110 Wait 672 | . 53 137 38 . 38 305 75 9 5 9 3 Move 3892 | 37 371 386 454 217 401 756 597 454 40 129 50 Hop . | . . . . . . . . . . . . Pick Up 66 | 2 9 18 3 . 2 21 4 1 . . 6 Fast Attach 31 | 6 13 4 2 . . 2 . . . . 4 Attach 32 | . 3 7 1 . 1 2 3 7 4 1 3 Detach 4 | . 1 1 . . . . . . 1 . 1 Swap 79 | . 10 21 4 . 2 18 24 . . . . Drop 81 | . 7 30 6 . 1 24 9 . . . 4 Fire 258 | . 54 61 17 . 14 28 33 22 2 . 27 Melee 27 | . . 9 . . 2 1 . 1 6 . 8 Ram . | . . . . . . . . . . . . Kick 13 | . 4 . . . . 3 6 . . . . Crush . | . . . . . . . . . . . . Escape Stasis . | . . . . . . . . . . . . Rewire . | . . . . . . . . . . . . Trap 4 | . . . . . . . . . . . 4 Miscellaneous . | . . . . . . . . . . . . Route ------- -11/Junkyard -10/Materials (discovered 3 exits: *Mat / [*Min x2]) -9/Materials (discovered 3 exits: *Mat / *Min x2) -9/Mines (discovered 3 exits: *Mat x2 / *Exi) -9/Exiles -8/Mines (discovered 2 exits: *Mat x2) -8/Materials -7/Factory (discovered 5 exits: *Fac / Sto x2 / *Low x2) -7/Lower Caves -7/Lower Caves -6/Factory -6/DSF History --------- Turn | Location | Event 10 | -11/Junkyard | Discovered new exit (range 15) 53 | -11/Junkyard | Entered Materials 276 | -10/Materials | Discovered new exit (range 9) 306 | -10/Materials | Build established: Mutant 344 | -10/Materials | Core integrity fell below 50% 626 | -10/Materials | Discovered new exit (range 16) 757 | -10/Materials | Discovered new exit (range 7) 774 | -10/Materials | Entered another Materials area 774 | -9/Materials | Evolved 2 slots: Weapon x2 847 | -9/Materials | Identified exit to Mines 1123 | -9/Materials | Lost 4 parts (1p2n1w) 1155 | -9/Materials | Build established: Scavenger-Gunner 1563 | -9/Materials | Build established: Scavenger-Tank 1635 | -9/Materials | Discovered new exit (range 13) 1909 | -9/Materials | Entered Mines 1923 | -9/Mines | Met a Derelict bent on vengeance 2101 | -9/Mines | YI-UF0 nonchalantly dropped a Grenade Launcher on the ground 2124 | -9/Mines | Build established: Tank 2303 | -9/Mines | Found a hidden stash of uninstalled traps 2320 | -9/Mines | Assembled infested the area 2344 | -9/Mines | Learned location of Zion (-6) 2488 | -9/Mines | Discovered new exit (range 11) 2602 | -9/Mines | Learned Materials emergency access door positions 2707 | -9/Mines | Discovered new exit (range 5) 2860 | -9/Mines | Deemed a non-threat by the Exiles lab entrance 2860 | -9/Mines | Discovered new exit (range 5) 2867 | -9/Mines | Entered Exiles 2915 | -9/Exiles | Met 8R-AWN 2945 | -9/Exiles | Met EX-HEX 3000 | -9/Exiles | Met EX-BIN 3023 | -9/Exiles | Aligned with FarCom system 3025 | -9/Exiles | Given EX-Vault access code 3073 | -9/Exiles | Opened EX-Vault 3124 | -9/Exiles | Warned to stay clear of 0b10 Research branches 3255 | -9/Exiles | Discovered new exit (range 15) 3280 | -9/Exiles | Entered Mines 3574 | -8/Mines | Build established: Skirmisher 4056 | -8/Mines | Core integrity fell below 50% 4091 | -8/Mines | Discovered new exit (range 6) 4113 | -8/Mines | Discovered new exit (range 9) 4128 | -8/Mines | Entered Materials 4128 | -8/Materials | Evolved 2 slots: Propulsion x2 5021 | -8/Materials | Build established: Scavenger-Skirmisher 5422 | -8/Materials | Discovered new exit (range 15) 5489 | -8/Materials | Entered Factory 5489 | -7/Factory | Evolved 2 slots: Propulsion x1, Utility x1 5593 | -7/Factory | Discovered new exit (range 15) 6073 | -7/Factory | Build established: Skirmisher 6156 | -7/Factory | Discovered new exit (range 8) 6360 | -7/Factory | Discovered new exit (range 9) 6400 | -7/Factory | Identified exit to Storage 6400 | -7/Factory | Identified exit to Lower Caves 6439 | -7/Factory | Entered Lower Caves 6486 | -7/Lower Caves | Spotted B-75 Beast 6733 | -7/Lower Caves | Build established: Tank 6985 | -7/Lower Caves | Attracted the attention of an 0b10 checkpoint 7027 | -7/Lower Caves | Lost 7 parts (1n1u5w) 7057 | -7/Lower Caves | Discovered new exit (range 14) 7069 | -7/Lower Caves | Core integrity fell below 50% 7069 | -7/Lower Caves | System corruption reached 10% 7073 | -7/Lower Caves | Entered another Lower Caves area 7110 | -7/Lower Caves | Discovered new exit (range 9) 7153 | -7/Lower Caves | Entered Factory 7153 | -6/Factory | Evolved 2 slots: Utility x2 7250 | -6/Factory | Build established: Mutant 7317 | -6/Factory | Identified exit to DSF 7318 | -6/Factory | Entered DSF 7328 | -6/DSF | Assembled infested the area 7352 | -6/DSF | Additional patrols routed to DSF 7463 | -6/DSF | System corruption reached 10% 7493 | -6/DSF | Lost 13 parts (1p4n4u4w) 7496 | -6/DSF | Core integrity fell below 50% 7511 | -6/DSF | Core integrity fell below 20% 7514 | -6/DSF | Destroyed by D-53 Grenadier with Mini Grenade Launcher Last Messages --------------- 07494_ as-09813 suffers critical hit (Blast). 07494_ as-09813 destroyed. 07495_ Acquired 13 matter. 07496_ System corrupted: Tri-rail Accelerator rejected. 07496_ Knocked back. 07497_ Acquired 21 matter. 07497_ Acquired 13 matter. 07499_ as-23455 destroyed. 07502_ as-07015 destroyed. 07502_ as-59559 destroyed. 07502_ as-01757 destroyed. 07503_ as-31397 destroyed. 07504_ Acquired 2 matter. 07504_ The unstable cave ceiling collapses. 07505_ as-49736 knocked back. 07505_ as-49736 destroyed. 07505_ Tri-rail Accelerator destroyed. 07511_ Rocket Launcher destroyed. 07513_ MKITC4W,:C9:AWW 8 VL7%P=/E 07513_ D-53 Grenadier destroyed. Map ----- +----------------------------------------------------+ | ??????????????????????????????????????? | | ??????????????????????????????????????? | | ??????????????????????????????????????? | | ??????????????????????????????????????? | | ??????????????????????????????????????? | | ??????????????????????????????????????? | | ??????????????????????????????????????? | | ??????????????????????????????????????? | | ??????????????????????????????????????? | | ??????????????????????????????????????? | | ??????????????????????????????????????? | | ??????????????g???????????????????????? | | ?????????????g????????????????????????? | | ????????????? ????????????????????????? | | ???????????] " ???????????????????????? | | ?????????? #"% #?#########?#####??????? | | ?????????? A ##!!!# #? !!#??????? | | ?????????# % !!# ## !!#??????? | | ?????????? ]! ]]#??????? | | ?????????? !%= ]]#??????? | | ?????????? =* ]]#??????? | | ?????????? A A# % ]]#??????? | | ??????????? a ]]#??????? | | ???????????# ## ##???????? | | ?????????#!! !! #???????? | | ?????????#!! !! d @ #???????? | | ?????????#!! !!# < &#???????? | | ??????????## # ##???????? | | ???????????? ]]##%# &#???????? | | ?????????# ???#%### # #???????? | | ?????????? ????##+####### ##???????? | | ?????????????????#&&%# ### ###??????? | | ???????????# ###&&&# ## = ""###????? | | ?????????# [= """""#???? | | ?????????# ""##"#???? | | ?????????# # # ##"""""#??????? | | ?????????# #########"""""#??????? | | ?????????########????????##"####??????? | | ??????????????????????????#"#?????????? | | ??????????????????????????#""?????????? | | ??????????????????????????????????????? | | ??????????????????????????????????????? | | ??????????????????????????????????????? | | ??????????????????????????????????????? | | ??????????????????????????????????????? | | | | | | | | | | | +----------------------------------------------------+ Best States ------------- Heat Dissipation 59 Energy Generation 16 Energy Capacity 290 Matter Stores 300 Matter Capacity 300 Sight Range 16 Terrain Scan Range 16 Terrain Scan Density 10 Armor Coverage 375 Resistance: TH 10 Propulsion Shielding 33 Evasion (%) 55 Item Schematics ----------------- None Robot Schematics ------------------ None Fabricated ------------ Nothing Alien Tech Used ----------------- None Achievements -------------- Killing Spree Challenges ------------ None Game ------ Seed AntimissileTransportMachine Manual? 0 Play Time 01:05:39 Cumulative 32.8 hours Start 2023.09.08 @ 11:10:33 End 2023.09.08 @ 12:26:19 Sessions 1 Manual Loads 0 Difficulty Rogue Special Mode None Game No. 24 Rogue 24 Adventurer 0 Explorer 0 Win Type - Total 0 Types 0/0/0/0/0/0/0/0/0 Lore% 18 Gallery% 29 Achievement% 28 Wizard Run 0 Options --------- ASCII 0 Keyboard 1 Movement Numpad Keybinds 0 Fullscreen 1 Font 24/Terminus Map View 76x50 Tactical HUD 1 Map Filters NONE Filters NONE Steam 1 RUN: 11199766-bfa6-4405-b4f4-cfeb12e020b4